[Event "Asian Zonal 3.2 2019"]
[Site "Dhaka"]
[Date "2019.03.23"]
[Round "9.2"]
[White "Mehdi Hasan Parag"]
[Black "Mohammad Fahad, Rahman"]
[Result "0-1"]
[ECO "B88"]
[WhiteElo "2229"]
[BlackElo "2278"]
[Annotator "ChessBase"]
[PlyCount "112"]
[EventDate "2019.03.14"]
[EventType "swiss"]
[EventCountry "BAN"]
[SourceTitle "playchess.com"]
[Source "ChessBase"]
[SourceQuality "1"]
[TimeControl "5400+30"]

1. e4 {[%emt 0:00:00]} c5 {[%emt 0:00:00]} 2. Nf3 {[%emt 0:00:00]} d6 {[%emt 0:00:00]} 3. d4 {[%emt 0:00:11]} cxd4 {[%emt 0:00:00]} 4. Nxd4 {[%emt 0:00:06]} Nf6 {[%emt 0:00:00]} 5. Nc3 {[%emt 0:00:04]} Nc6 {[%emt 0:00:05]} 6. Bc4 {[%emt 0:01:06]} e6 {[%emt 0:00:10]} 7. Be3 {[%emt 0:00:09]} a6 {[%emt 0:00:17]} 8. Bb3 {[%emt 0:00:12]} Na5 {[%emt 0:01:29]} 9. f4 {[%emt 0:02:09]} Qc7 {[%emt 0:00:10]} 10. g4 {[%emt 0:00:28]} Nc4 {[%emt 0:02:14]} 11. Bxc4 {[%emt 0:00:09]} Qxc4 {[%emt 0:00:08]} 12. g5 {[%emt 0:00:14]} Nd7 {[%emt 0:01:53]} 13. Qf3 {[%emt 0:00:07]} b5 {[%emt 0:02:49]} 14. a3 {[%emt 0:00:09]} Bb7 {[%emt 0:02:45]} 15. O-O-O {[%emt 0:00:40]} d5 {[%emt 0:08:06]} 16. f5 {[%emt 0:19:35]} e5 {[%emt 0:11:40]} 17. exd5 {[%emt 0:07:14]} exd4 {[%emt 0:10:09]} 18. Rxd4 {[%emt 0:00:06]} Qc7 {[%emt 0:00:54]} 19. Re4+ {[%emt 0:03:38]} Kd8 {[%emt 0:02:15]} 20. Bd4 {[%emt 0:01:09]} f6 {[%emt 0:14:21]} 21. Re6 {[%emt 0:14:50]} Bc5 {[%emt 0:07:27]} 22. Qe4 {[%emt 0:09:09]} Bxd4 {[%emt 0:13:47]} 23. Qxd4 {[%emt 0:02:10]} Qc5 {[%emt 0:00:16]} 24. Qd2 {[%emt 0:00:44]} b4 {[%emt 0:02:01]} 25. axb4 {[%emt 0:00:54]} Qxb4 {[%emt 0:00:09]} 26. Rhe1 {[%emt 0:09:45]} a5 {[%emt 0:01:03]} 27. Qe3 {[%emt 0:04:48]} Ra6 {[%emt 0:01:19]} 28. Re7 {[%emt 0:07:08]} Rg8 {[%emt 0:03:42]} 29. gxf6 {[%emt 0:01:43]} Rxf6 {[%emt 0:00:40]} 30. b3 {[%emt 0:11:49]} Rd6 {[%emt 0:07:59]} 31. Qd3 {[%emt 0:01:26]} Qf4+ {[%emt 0:01:32]} 32. Kb1 {[%emt 0:00:14]} Ba6 {[%emt 0:00:11]} 33. Qh3 {[%emt 0:01:09]} Rh6 {[%emt 0:00:23]} 34. Qg2 {[%emt 0:01:04]} Rxh2 {[%emt 0:00:36]} 35. Qg1 {[%emt 0:01:20]} Qf2 {[%emt 0:00:17]} 36. Qxf2 {[%emt 0:00:41]} Rxf2 {[%emt 0:00:07]} 37. R7e6 {[%emt 0:01:04]} Rf1 {[%emt 0:02:25]} 38. Rxf1 {[%emt 0:00:36]} Bxf1 {[%emt 0:00:05]} 39. Ne4 {[%emt 0:00:21]} Bg2 {[%emt 0:04:07]} 40. Ng5 {[%emt 0:00:00]} Rf8 {[%emt 0:00:00]} 41. Ra6 {[%emt 0:00:00]} Bxd5 {[%emt 0:00:00]} 42. Rxa5 {[%emt 0:00:00]} Rxf5 {[%emt 0:00:00]} 43. Nxh7 {[%emt 0:00:00]} g5 {[%emt 0:00:00]} 44. Nxg5 {[%emt 0:00:00]} Rxg5 {[%emt 0:00:00]} 45. Kb2 {[%emt 0:00:00]} Kc7 {[%emt 0:00:00]} 46. c4 {[%emt 0:00:00]} Rg2+ {[%emt 0:00:00]} 47. Kc3 {[%emt 0:00:00]} Rg3+ {[%emt 0:00:00]} 48. Kb4 {[%emt 0:00:00]} Be4 {[%emt 0:00:00]} 49. Ra2 {[%emt 0:00:00]} Nb8 {[%emt 0:00:00]} 50. Re2 {[%emt 0:00:00]} Nc6+ {[%emt 0:00:00]} 51. Ka4 {[%emt 0:00:00]} Rg8 {[%emt 0:00:00]} 52. Ka3 {[%emt 0:00:00]} Bf5 {[%emt 0:00:00]} 53. Rf2 {[%emt 0:00:00]} Be6 {[%emt 0:00:00]} 54. Rd2 {[%emt 0:00:00]} Rg3 {[%emt 0:00:00]} 55. Ka4 {[%emt 0:00:00]} Bd7 {[%emt 0:00:00]} 56. Ka3 {[%emt 0:00:00]} Na5 {[%emt 0:00:00]} 0-1

[Event "Asian Zonal 3.2 2019"]
[Site "Dhaka"]
[Date "2019.03.23"]
[Round "9.5"]
[White "Mohammad Minhaz Uddin"]
[Black "Nayem, Haque"]
[Result "1-0"]
[ECO "C45"]
[WhiteElo "2279"]
[BlackElo "2000"]
[Annotator "ChessBase"]
[PlyCount "83"]
[EventDate "2019.03.14"]
[EventType "swiss"]
[EventCountry "BAN"]
[SourceTitle "playchess.com"]
[Source "ChessBase"]
[SourceQuality "1"]
[TimeControl "5400+30"]

1. e4 {[%emt 0:00:00]} d6 {[%emt 0:00:17]} 2. d4 {[%emt 0:00:00]} e5 {[%emt 0:00:06]} 3. Ne2 {[%emt 0:06:20]} exd4 {[%emt 0:00:49]} 4. Nxd4 {[%emt 0:00:04]} Nf6 {[%emt 0:00:08]} 5. Nc3 {[%emt 0:00:05]} Nc6 {[%emt 0:00:07]} 6. Nxc6 {[%emt 0:00:19]} bxc6 {[%emt 0:00:01]} 7. Bd3 {[%emt 0:00:08]} Be7 {[%emt 0:00:51]} 8. O-O {[%emt 0:00:06]} O-O {[%emt 0:00:12]} 9. h3 {[%emt 0:00:04]} Nd7 {[%emt 0:02:22]} 10. Be3 {[%emt 0:03:10]} a5 {[%emt 0:01:00]} 11. Ne2 {[%emt 0:04:37]} Ne5 {[%emt 0:00:52]} 12. f4 {[%emt 0:00:42]} Nxd3 {[%emt 0:00:06]} 13. cxd3 {[%emt 0:00:03]} c5 {[%emt 0:03:11]} 14. f5 {[%emt 0:03:22]} Bf6 {[%emt 0:00:50]} 15. Rb1 {[%emt 0:01:01]} Bb7 {[%emt 0:00:29]} 16. Nf4 {[%emt 0:01:00]} c4 {[%emt 0:00:23]} 17. Nh5 {[%emt 0:05:30]} cxd3 {[%emt 0:02:13]} 18. Rf4 {[%emt 0:06:54]} Ba6 {[%emt 0:17:39]} 19. Qd2 {[%emt 0:10:16]} Kh8 {[%emt 0:02:10]} 20. Rbf1 {[%emt 0:04:28]} c5 {[%emt 0:06:58]} 21. Rg4 {[%emt 0:01:56]} Rb8 {[%emt 0:12:12]} 22. b3 {[%emt 0:29:18]} a4 {[%emt 0:07:02]} 23. e5 {[%emt 0:08:38]} dxe5 {[%emt 0:19:41]} 24. Rxa4 {[%emt 0:00:06]} Bb7 {[%emt 0:05:25]} 25. Rg4 {[%emt 0:00:13]} Rc8 {[%emt 0:04:16]} 26. Qf2 {[%emt 0:06:52]} e4 {[%emt 0:03:03]} 27. Qg3 {[%emt 0:05:50]} Rg8 {[%emt 0:05:56]} 28. Rf2 {[%emt 0:00:03]} Bd4 {[%emt 0:01:50]} 29. f6 {[%emt 0:00:58]} gxf6 {[%emt 0:00:31]} 30. Bxd4 {[%emt 0:02:23]} Qxd4 {[%emt 0:01:12]} 31. Nxf6 {[%emt 0:00:08]} Rxg4 {[%emt 0:00:48]} 32. Qxg4 {[%emt 0:00:04]} d2 {[%emt 0:01:20]} 33. Qf5 {[%emt 0:00:42]} d1=Q+ {[%emt 0:00:51]} 34. Kh2 {[%emt 0:00:01]} Kg7 {[%emt 0:01:07]} 35. Qg5+ {[%emt 0:00:50]} Kh8 {[%emt 0:00:33]} 36. Qh6 {[%emt 0:00:39]} Qe5+ {[%emt 0:00:41]} 37. g3 {[%emt 0:00:05]} Qxg3+ {[%emt 0:00:39]} 38. Kxg3 {[%emt 0:00:03]} Rg8+ {[%emt 0:00:34]} 39. Nxg8 {[%emt 0:00:21]} Kxg8 {[%emt 0:00:28]} 40. Qg5+ {[%emt 0:00:00]} Kf8 {[%emt 0:00:00]} 41. Qxc5+ {[%emt 0:00:00]} Kg7 {[%emt 0:00:00]} 42. Qe5+ {[%emt 0:00:00]} 1-0

[Event "Asian Zonal 3.2 2019"]
[Site "Dhaka"]
[Date "2019.03.23"]
[Round "9.6"]
[White "Alahakoon, Isuru"]
[Black "Rahman, Taibur"]
[Result "1-0"]
[ECO "A13"]
[WhiteElo "2079"]
[BlackElo "2226"]
[Annotator "ChessBase"]
[PlyCount "159"]
[EventDate "2019.03.14"]
[EventType "swiss"]
[EventCountry "BAN"]
[SourceTitle "playchess.com"]
[Source "ChessBase"]
[SourceQuality "1"]
[TimeControl "5400+30"]

1. Nf3 {[%emt 0:00:00]} d5 {[%emt 0:01:06]} 2. e3 {[%emt 0:00:18]} c5 {[%emt 0:01:35]} 3. b3 {[%emt 0:02:03]} Nf6 {[%emt 0:01:59]} 4. Bb2 {[%emt 0:00:37]} e6 {[%emt 0:00:05]} 5. c4 {[%emt 0:01:04]} Be7 {[%emt 0:00:39]} 6. Nc3 {[%emt 0:03:35]} O-O {[%emt 0:01:59]} 7. cxd5 {[%emt 0:01:19]} Nxd5 {[%emt 0:02:14]} 8. Qc2 {[%emt 0:03:09]} Nc6 {[%emt 0:01:33]} 9. a3 {[%emt 0:02:09]} b6 {[%emt 0:00:55]} 10. h4 {[%emt 0:03:55]} h6 {[%emt 0:13:39]} 11. g4 {[%emt 0:01:57]} Bb7 {[%emt 0:02:00]} 12. g5 {[%emt 0:05:15]} h5 {[%emt 0:07:28]} 13. Rh3 {[%emt 0:04:57]} Rc8 {[%emt 0:02:05]} 14. Ne4 {[%emt 0:04:39]} Re8 {[%emt 0:17:46]} 15. Ng3 {[%emt 0:06:03]} g6 {[%emt 0:02:16]} 16. Ne4 {[%emt 0:05:52]} a6 {[%emt 0:04:57]} 17. Rg3 {[%emt 0:02:27]} Rc7 {[%emt 0:09:07]} 18. Bh3 {[%emt 0:19:24]} Bd6 {[%emt 0:23:24]} 19. Rg1 {[%emt 0:01:24]} e5 {[%emt 0:00:26]} 20. Qd3 {[%emt 0:04:48]} Bf8 {[%emt 0:01:47]} 21. Qc2 {[%emt 0:10:29]} Bg7 {[%emt 0:00:10]} 22. Bf1 {[%emt 0:00:14]} Rd7 {[%emt 0:01:00]} 23. Bc4 {[%emt 0:04:44]} Na5 {[%emt 0:00:53]} 24. Be2 {[%emt 0:02:53]} Nc7 {[%emt 0:00:54]} 25. d3 {[%emt 0:04:05]} Qe7 {[%emt 0:00:51]} 26. Nfd2 {[%emt 0:00:28]} Red8 {[%emt 0:00:29]} 27. Nc4 {[%emt 0:01:29]} Nxc4 {[%emt 0:00:13]} 28. bxc4 {[%emt 0:00:27]} Bxe4 {[%emt 0:01:21]} 29. dxe4 {[%emt 0:00:06]} b5 {[%emt 0:00:16]} 30. Rc1 {[%emt 0:01:58]} b4 {[%emt 0:00:24]} 31. axb4 {[%emt 0:00:40]} cxb4 {[%emt 0:00:00]} 32. c5 {[%emt 0:00:11]} a5 {[%emt 0:00:05]} 33. Kf1 {[%emt 0:02:47]} Qe6 {[%emt 0:01:12]} 34. Rg3 {[%emt 0:00:50]} Rd2 {[%emt 0:00:32]} 35. Qb1 {[%emt 0:00:26]} Qb3 {[%emt 0:01:03]} 36. Ba1 {[%emt 0:00:34]} Qxb1 {[%emt 0:00:17]} 37. Rxb1 {[%emt 0:00:05]} Rc2 {[%emt 0:00:03]} 38. f4 {[%emt 0:00:58]} Rxc5 {[%emt 0:01:02]} 39. f5 {[%emt 0:00:22]} Rd2 {[%emt 0:00:13]} 40. Rg2 {[%emt 0:00:00]} Rdc2 {[%emt 0:00:00]} 41. Bb2 {[%emt 0:00:00]} a4 {[%emt 0:00:00]} 42. fxg6 {[%emt 0:00:00]} fxg6 {[%emt 0:00:00]} 43. Bd1 {[%emt 0:00:00]} Rxg2 {[%emt 0:00:00]} 44. Kxg2 {[%emt 0:00:00]} b3 {[%emt 0:00:00]} 45. Ra1 {[%emt 0:00:00]} Bf8 {[%emt 0:00:00]} 46. Rxa4 {[%emt 0:00:00]} Rb5 {[%emt 0:00:00]} 47. Be2 {[%emt 0:00:00]} Rb7 {[%emt 0:00:00]} 48. Bc4+ {[%emt 0:00:00]} Kh7 {[%emt 0:00:00]} 49. Ra1 {[%emt 0:00:00]} Nb5 {[%emt 0:00:00]} 50. Ra5 {[%emt 0:00:00]} Nd6 {[%emt 0:00:00]} 51. Bd5 {[%emt 0:00:00]} Rc7 {[%emt 0:00:00]} 52. Bxe5 {[%emt 0:00:26]} b2 {[%emt 0:00:00]} 53. Ba2 {[%emt 0:01:07]} Rb7 {[%emt 0:00:00]} 54. Ra8 {[%emt 0:00:40]} Nf7 {[%emt 0:00:00]} 55. Bd4 {[%emt 0:03:08]} Bg7 {[%emt 0:00:00]} 56. Kf3 {[%emt 0:01:57]} b1=Q {[%emt 0:00:14]} 57. Bxb1 {[%emt 0:00:10]} Rxb1 {[%emt 0:00:09]} 58. Ra7 {[%emt 0:00:16]} Kg8 {[%emt 0:00:43]} 59. Ra8+ {[%emt 0:00:07]} Bf8 {[%emt 0:00:29]} 60. e5 {[%emt 0:00:58]} Rb5 {[%emt 0:02:27]} 61. e6 {[%emt 0:00:53]} Ne5+ {[%emt 0:00:10]} 62. Ke4 {[%emt 0:00:05]} Nc6 {[%emt 0:00:52]} 63. Bf6 {[%emt 0:01:30]} Rb7 {[%emt 0:03:52]} 64. Kd5 {[%emt 0:00:49]} Ne7+ {[%emt 0:00:14]} 65. Kc4 {[%emt 0:00:18]} Rc7+ {[%emt 0:01:06]} 66. Kb5 {[%emt 0:00:41]} Rb7+ {[%emt 0:01:36]} 67. Ka5 {[%emt 0:01:01]} Nd5 {[%emt 0:01:38]} 68. e4 {[%emt 0:00:27]} Nc7 {[%emt 0:00:12]} 69. e7 {[%emt 0:00:27]} Rb5+ {[%emt 0:01:35]} 70. Ka4 {[%emt 0:00:09]} Rb4+ {[%emt 0:00:26]} 71. Kxb4 {[%emt 0:00:51]} Nxa8 {[%emt 0:00:05]} 72. exf8=Q+ {[%emt 0:00:12]} Kxf8 {[%emt 0:00:01]} 73. Bd8 {[%emt 0:00:31]} Ke8 {[%emt 0:00:06]} 74. Ba5 {[%emt 0:00:10]} Kd7 {[%emt 0:00:06]} 75. Kc4 {[%emt 0:01:00]} Kd6 {[%emt 0:01:48]} 76. Kd4 {[%emt 0:00:07]} Ke6 {[%emt 0:00:04]} 77. e5 {[%emt 0:00:24]} Ke7 {[%emt 0:00:24]} 78. Kd5 {[%emt 0:00:05]} Kd7 {[%emt 0:00:07]} 79. e6+ {[%emt 0:00:46]} Ke7 {[%emt 0:00:04]} 80. Ke5 {[%emt 0:02:04]} 1-0

[Event "Asian Zonal 3.2 2019"]
[Site "Dhaka"]
[Date "2019.03.23"]
[Round "9.7"]
[White "Shrestha, Keshav"]
[Black "Abu Sufian, Shakil"]
[Result "1/2-1/2"]
[ECO "B13"]
[WhiteElo "2044"]
[BlackElo "2254"]
[Annotator "ChessBase"]
[PlyCount "69"]
[EventDate "2019.03.14"]
[EventType "swiss"]
[EventCountry "BAN"]
[SourceTitle "playchess.com"]
[Source "ChessBase"]
[SourceQuality "1"]
[TimeControl "5400+30"]

1. e4 {[%emt 1:30:30]} c6 {[%emt 1:30:30]} 2. d4 {[%emt 0:00:30]} d5 {[%emt 0:00:30]} 3. exd5 {[%emt 0:00:30]} cxd5 {[%emt 0:00:30]} 4. Bd3 {[%emt 0:00:30]} Nc6 {[%emt 0:00:30]} 5. c3 {[%emt 0:00:30]} Qc7 {[%emt 0:00:30]} 6. Ne2 {[%emt 0:00:30]} Bg4 {[%emt 0:00:30]} 7. f3 {[%emt 0:00:30]} Bd7 {[%emt 0:00:30]} 8. Na3 {[%emt 0:00:30]} a6 {[%emt 0:00:30]} 9. Nc2 {[%emt 0:00:30]} e5 {[%emt 0:00:30]} 10. dxe5 {[%emt 0:00:30]} Nxe5 {[%emt 0:00:30]} 11. Ncd4 {[%emt 0:00:30]} Nxd3+ {[%emt 0:00:30]} 12. Qxd3 {[%emt 0:00:30]} Bd6 {[%emt 0:00:30]} 13. g3 {[%emt 0:00:30]} Qc4 {[%emt 0:00:30]} 14. Qxc4 {[%emt 0:00:30]} dxc4 {[%emt 0:00:30]} 15. Bf4 {[%emt 0:00:30]} Bc5 {[%emt 0:00:30]} 16. O-O-O {[%emt 0:00:30]} Ne7 {[%emt 0:00:30]} 17. Rhe1 {[%emt 0:00:30]} O-O-O {[%emt 0:00:30]} 18. Nc2 {[%emt 0:00:30]} Ba4 {[%emt 0:00:30]} 19. Ned4 {[%emt 0:00:30]} Ng6 {[%emt 0:00:30]} 20. Re4 {[%emt 0:00:30]} Rhe8 {[%emt 0:00:30]} 21. Rde1 {[%emt 0:00:30]} Rxe4 {[%emt 0:00:30]} 22. Rxe4 {[%emt 0:00:30]} Bd7 {[%emt 0:00:30]} 23. Bd2 {[%emt 0:00:30]} Re8 {[%emt 0:00:30]} 24. Rxe8+ Bxe8 25. Nf5 {[%emt 0:01:00]} Ne5 {[%emt 0:01:00]} 26. Nxg7 {[%emt 0:00:30]} Bc6 {[%emt 0:00:30]} 27. Ne1 {[%emt 0:00:30]} Nxf3 {[%emt 0:00:30]} 28. Nxf3 {[%emt 0:00:30]} Bxf3 {[%emt 0:00:30]} 29. Nf5 {[%emt 0:00:30]} Kd7 {[%emt 0:00:30]} 30. Be3 {[%emt 0:00:30]} Bf8 {[%emt 0:00:30]} 31. Kd2 {[%emt 0:00:30]} Bg4 {[%emt 0:00:30]} 32. Bh6 {[%emt 0:00:30]} Bc5 {[%emt 0:00:30]} 33. Be3 {[%emt 0:00:30]} Bf8 {[%emt 0:00:30]} 34. Bh6 {[%emt 0:00:30]} Bc5 {[%emt 0:00:30]} 35. Be3 {[%emt 0:00:30]} 1/2-1/2